[Event "Championnat du monde jeunes U12"]
[Date "2024.11.26"]
[White "Smirnov, Mark"]
[Black "Aansh Nandan Nerurkar"]
[WhiteElo "2300"]
[BlackElo "2247"]
[Round "11.1"]
[Result "1-0"]
[TimeControl "5400+30"]

1. e4 {[%clk 1:30:59]} 1... c5 {[%clk 1:30:55]} 2. Nf3 {[%clk 1:31:24]} 2... d6
{[%clk 1:31:20]} 3. d4 {[%clk 1:31:50]} 3... cxd4 {[%clk 1:31:45]} 4. Nxd4
{[%clk 1:32:18]} 4... Nf6 {[%clk 1:32:05]} 5. Nc3 {[%clk 1:32:44]} 5... g6
{[%clk 1:32:28]} 6. Be3 {[%clk 1:33:09]} 6... Bg7 {[%clk 1:32:53]} 7. f3 {[%clk
1:33:33]} 7... O-O {[%clk 1:33:18]} 8. Qd2 {[%clk 1:33:40]} 8... Nc6 {[%clk
1:33:41]} 9. O-O-O {[%clk 1:34:03]} 9... Nxd4 {[%clk 1:34:07]} 10. Bxd4 {[%clk
1:34:12]} 10... Be6 {[%clk 1:34:31]} 11. Kb1 {[%clk 1:34:34]} 11... Qc7 {[%clk
1:34:58]} 12. h4 {[%clk 1:32:56]} 12... h5 {[%clk 1:33:31]} 13. g4 {[%clk
1:27:31]} 13... Rfc8 {[%clk 1:32:52]} 14. gxh5 {[%clk 1:05:29]} 14... Nxh5
{[%clk 1:33:11]} 15. Bxg7 {[%clk 1:05:29]} 15... Kxg7 {[%clk 1:33:11]} 16. Rg1
{[%clk 1:05:29]} 16... Qb6 {[%clk 1:33:11]} 17. Rg5 {[%clk 1:05:29]} 17... Nf6
{[%clk 1:08:39]} 18. h5 {[%clk 0:58:45]} 18... Rg8 {[%clk 1:03:12]} 19. hxg6
{[%clk 0:52:36]} 19... fxg6 {[%clk 1:02:57]} 20. Bd3 {[%clk 0:52:41]} 20... Kf8
{[%clk 0:57:52]} 21. e5 {[%clk 0:49:05]} 21... dxe5 {[%clk 0:58:13]} 22. Rxg6
{[%clk 0:47:52]} 22... Rh8 {[%clk 0:51:33]} 23. Qg5 {[%clk 0:33:58]} 23... Bf7
{[%clk 0:45:26]} 24. Rh6 {[%clk 0:31:17]} 24... Rg8 {[%clk 0:45:02]} 25. Qxe5
{[%clk 0:31:36]} 25... Rd8 {[%clk 0:43:51]} 26. Re1 {[%clk 0:29:54]} 26... Qe6
{[%clk 0:40:48]} 27. Qxe6 {[%clk 0:26:44]} 27... Bxe6 {[%clk 0:41:17]} 28. Ne4
{[%clk 0:26:02]} 28... Nxe4 {[%clk 0:38:05]} 29. Rxe6 {[%clk 0:20:52]} 29... Ng5
{[%clk 0:38:27]} 30. R6e3 {[%clk 0:20:19]} 30... Rg7 {[%clk 0:38:33]} 31. f4
{[%clk 0:20:01]} 31... Nh7 {[%clk 0:38:57]} 32. Rh3 {[%clk 0:16:47]} 32... Nf6
{[%clk 0:39:15]} 33. Bc4 {[%clk 0:16:03]} 33... Rh7 {[%clk 0:39:19]} 34. Rxh7
{[%clk 0:15:16]} 34... Nxh7 {[%clk 0:38:42]} 35. c3 {[%clk 0:15:25]} 35... Nf6
{[%clk 0:38:30]} 36. Kc2 {[%clk 0:15:47]} 36... Rd6 {[%clk 0:37:41]} 37. b4
{[%clk 0:13:25]} 37... Ke8 {[%clk 0:36:49]} 38. a4 {[%clk 0:11:16]} 38... Nh5
{[%clk 0:36:24]} 39. f5 {[%clk 0:10:40]} 39... Ng7 {[%clk 0:36:38]} 40. Re5
{[%clk 0:10:37]} 40... Kd7 {[%clk 0:36:17]} 41. a5 {[%clk 0:10:52]} 41... Rf6
{[%clk 0:36:26]} 42. Bd3 {[%clk 0:09:52]} 42... b6 {[%clk 0:36:27]} 43. Rb5
{[%clk 0:08:44]} 43... Kc6 {[%clk 0:36:14]} 44. c4 {[%clk 0:08:39]} 44... e6
{[%clk 0:34:19]} 45. fxe6 {[%clk 0:07:03]} 45... Nxe6 {[%clk 0:34:41]} 46. Be4+
{[%clk 0:06:26]} 46... Kc7 {[%clk 0:32:17]} 47. Rh5 {[%clk 0:06:20]} 47... Nd8
{[%clk 0:32:13]} 48. a6 {[%clk 0:05:44]} 48... Rf7 {[%clk 0:31:37]} 49. Bd5
{[%clk 0:05:30]} 49... Rd7 {[%clk 0:31:27]} 50. b5 {[%clk 0:04:17]} 50... Nf7
{[%clk 0:31:01]} 51. Be6 {[%clk 0:04:23]} 51... Re7 {[%clk 0:31:15]} 52. Rh7
{[%clk 0:04:42]} 52... Rxe6 {[%clk 0:31:12]} 53. Rxf7+ {[%clk 0:05:11]} 53...
Kb8 {[%clk 0:31:35]} 54. Rf8+ {[%clk 0:05:36]} 54... Kc7 {[%clk 0:32:02]} 55.
Ra8 {[%clk 0:06:00]} 55... Kd6 {[%clk 0:30:57]} 56. Rxa7 {[%clk 0:06:07]} 56...
Kc5 {[%clk 0:31:19]} 57. Rc7+ {[%clk 0:06:32]} 57... Kb4 {[%clk 0:31:46]} 58. a7
{[%clk 0:06:35]} 58... Re8 {[%clk 0:32:13]} 59. Kd3 {[%clk 0:07:01]} 59... Rd8+
{[%clk 0:32:38]} 60. Ke4 {[%clk 0:07:28]} 60... Ka5 {[%clk 0:32:54]} 61. Rb7
{[%clk 0:07:33]} 61... Ra8 {[%clk 0:33:19]} 62. Kd5 {[%clk 0:07:59]} 62... Kb4
{[%clk 0:33:45]} 63. Kc6 {[%clk 0:08:23]} 63... Kxc4 {[%clk 0:34:11]} 64. Kxb6
{[%clk 0:08:47]} 64... Kb4 {[%clk 0:34:37]} 65. Rb8 {[%clk 0:09:13]} 65... Rxa7
{[%clk 0:34:49]} 66. Kxa7 {[%clk 0:09:38]} 66... Kc5 {[%clk 0:35:14]} 67. b6
{[%clk 0:09:53]} 67... Kc6 {[%clk 0:35:40]} 68. b7 {[%clk 0:10:20]} 68... Kc7
{[%clk 0:36:06]} 69. Rc8+ {[%clk 0:10:45]} 69... Kd7 {[%clk 0:36:33]} 70. b8=Q
{[%clk 0:11:10]} 70... Ke7 {[%clk 0:36:58]} 71. Qe5+ {[%clk 0:11:32]} 71... Kf7
{[%clk 0:37:24]} 72. Rc7+ {[%clk 0:11:58]} 72... Kg6 {[%clk 0:37:49]} 73. Rg7+
{[%clk 0:12:24]} 73... Kh6 {[%clk 0:38:16]} 74. Qg5# {[%clk 0:12:48]} 1-0

[Variant "Standard"]
[Site "Europe Echecs"]

[Event "Championnat du monde jeunes U12"]
[Date "2024.11.26"]
[White "Luger, Sam"]
[Black "Radzimski, Antoni"]
[WhiteElo "2094"]
[BlackElo "2188"]
[Round "11.2"]
[Result "1/2-1/2"]
[TimeControl "5400+30"]

1. Nf3 {[%clk 1:30:37]} 1... Nf6 {[%clk 1:30:49]} 2. g3 {[%clk 1:30:50]} 2... d5
{[%clk 1:31:12]} 3. Bg2 {[%clk 1:30:55]} 3... Bf5 {[%clk 1:31:35]} 4. c4 {[%clk
1:27:54]} 4... c6 {[%clk 1:31:00]} 5. Qb3 {[%clk 1:20:05]} 5... Qb6 {[%clk
1:30:58]} 6. Nc3 {[%clk 1:09:07]} 6... e6 {[%clk 1:27:29]} 7. d3 {[%clk
0:49:39]} 7... Nbd7 {[%clk 1:24:34]} 8. Be3 {[%clk 0:42:39]} 8... Qxb3 {[%clk
1:21:47]} 9. axb3 {[%clk 0:42:44]} 9... a6 {[%clk 1:21:34]} 10. Nh4 {[%clk
0:38:50]} 10... Bg6 {[%clk 1:20:45]} 11. Nxg6 {[%clk 0:38:52]} 11... hxg6 {[%clk
1:21:09]} 12. h3 {[%clk 0:28:42]} 12... Bd6 {[%clk 1:17:59]} 13. O-O {[%clk
0:25:16]} 13... Ke7 {[%clk 1:15:13]} 14. d4 {[%clk 0:24:21]} 14... Rhc8 {[%clk
1:06:23]} 15. Bg5 {[%clk 0:20:30]} 15... Kf8 {[%clk 1:05:30]} 16. Rfd1 {[%clk
0:18:57]} 16... Be7 {[%clk 1:03:32]} 17. Ra2 {[%clk 0:10:21]} 17... Nb6 {[%clk
1:00:17]} 18. c5 {[%clk 0:06:26]} 18... Nbd7 {[%clk 1:00:41]} 19. b4 {[%clk
0:06:27]} 19... Re8 {[%clk 0:57:04]} 20. Bf4 {[%clk 0:03:09]} 20... Nh5 {[%clk
0:56:24]} 21. Be3 {[%clk 0:03:22]} 21... Nhf6 {[%clk 0:49:34]} 22. Bf4 {[%clk
0:03:41]} 22... Nh5 {[%clk 0:49:58]} 23. Be3 {[%clk 0:03:19]} 23... Nhf6 {[%clk
0:50:13]} 24. f4 {[%clk 0:02:45]} 24... Rac8 {[%clk 0:48:37]} 25. Bf2 {[%clk
0:02:38]} 25... Bd8 {[%clk 0:48:44]} 26. e3 {[%clk 0:02:18]} 26... Bc7 {[%clk
0:48:46]} 27. Re1 {[%clk 0:01:47]} 27... Ng8 {[%clk 0:47:12]} 28. Raa1 {[%clk
0:01:28]} 28... f5 {[%clk 0:42:15]} 29. g4 {[%clk 0:01:45]} 29... Ndf6 {[%clk
0:42:33]} 30. Bf3 {[%clk 0:01:35]} 30... Ne4 {[%clk 0:40:17]} 31. g5 {[%clk
0:01:17]} 31... Ne7 {[%clk 0:39:27]} 32. Red1 {[%clk 0:01:19]} 32... Kf7 {[%clk
0:39:25]} 33. Be1 {[%clk 0:01:24]} 33... Rh8 {[%clk 0:39:13]} 34. h4 {[%clk
0:01:39]} 34... Rb8 {[%clk 0:36:15]} 35. Ne2 {[%clk 0:01:22]} 35... Rbc8 {[%clk
0:36:06]} 36. Nc1 {[%clk 0:01:37]} 36... Rcd8 {[%clk 0:35:36]} 37. Nd3 {[%clk
0:01:41]} 37... Rc8 {[%clk 0:35:31]} 38. Kg2 {[%clk 0:02:03]} 38... Rcd8 {[%clk
0:35:50]} 39. Ra2 {[%clk 0:01:54]} 39... Rc8 {[%clk 0:36:07]} 40. Be2 {[%clk
0:02:10]} 40... Rb8 {[%clk 0:35:47]} 41. Rda1 {[%clk 0:02:27]} 41... Rhc8 {[%clk
0:35:05]} 42. Nc1 {[%clk 0:02:36]} 42... Rd8 {[%clk 0:34:15]} 43. Nb3 {[%clk
0:02:21]} 43... Re8 {[%clk 0:33:31]} 44. Na5 {[%clk 0:01:19]} 44... Red8 {[%clk
0:32:36]} 45. Ra3 {[%clk 0:01:28]} 45... Re8 {[%clk 0:32:44]} 46. R1a2 {[%clk
0:01:39]} 46... Red8 {[%clk 0:33:06]} 47. Rb3 {[%clk 0:01:27]} 47... Re8 {[%clk
0:32:55]} 48. Raa3 {[%clk 0:01:04]} 48... Red8 {[%clk 0:32:48]} 49. Ra1 {[%clk
0:00:49]} 49... Re8 {[%clk 0:33:10]} 50. Ra2 {[%clk 0:00:48]} 50... Red8 {[%clk
0:33:36]} 51. Rba3 {[%clk 0:00:48]} 51... Re8 {[%clk 0:33:59]} 52. Kg1 {[%clk
0:00:54]} 52... Red8 {[%clk 0:34:24]} 53. Kg2 {[%clk 0:00:44]} 1/2-1/2

[Variant "Standard"]
[Site "Europe Echecs"]

[Event "Championnat du monde jeunes U12"]
[Date "2024.11.26"]
[White "Lacan Rus, David"]
[Black "Kuandykuly, Danis"]
[WhiteElo "2274"]
[BlackElo "2199"]
[Round "11.3"]
[Result "1-0"]
[TimeControl "5400+30"]

1. e4 {[%clk 1:30:58]} 1... c5 {[%clk 1:28:13]} 2. Na3 {[%clk 1:31:23]} 2... Nc6
{[%clk 1:25:30]} 3. Bb5 {[%clk 1:31:47]} 3... d6 {[%clk 1:20:24]} 4. Bxc6+
{[%clk 1:30:49]} 4... bxc6 {[%clk 1:20:46]} 5. f4 {[%clk 1:30:31]} 5... e5
{[%clk 1:11:55]} 6. d3 {[%clk 1:26:04]} 6... exf4 {[%clk 1:09:48]} 7. Bxf4
{[%clk 1:24:53]} 7... Nf6 {[%clk 1:06:49]} 8. Ne2 {[%clk 1:22:40]} 8... d5
{[%clk 0:55:46]} 9. e5 {[%clk 1:15:25]} 9... Nh5 {[%clk 0:53:58]} 10. O-O {[%clk
1:10:54]} 10... Nxf4 {[%clk 0:52:56]} 11. Nxf4 {[%clk 1:10:36]} 11... Be7 {[%clk
0:35:08]} 12. Nh5 {[%clk 1:08:48]} 12... O-O {[%clk 0:33:20]} 13. Qf3 {[%clk
1:09:08]} 13... Bh4 {[%clk 0:27:02]} 14. g3 {[%clk 0:47:35]} 14... Be7 {[%clk
0:25:55]} 15. Rae1 {[%clk 0:42:37]} 15... Rb8 {[%clk 0:17:11]} 16. Qf4 {[%clk
0:35:38]} 16... Bg5 {[%clk 0:14:57]} 17. Qa4 {[%clk 0:33:05]} 17... Bh3 {[%clk
0:11:49]} 18. Rf2 {[%clk 0:33:04]} 18... Rxb2 {[%clk 0:11:57]} 19. Qxa7 {[%clk
0:32:00]} 19... Rxa2 {[%clk 0:11:02]} 20. e6 {[%clk 0:31:06]} 20... Bxe6 {[%clk
0:05:19]} 21. Rxe6 {[%clk 0:30:48]} 21... Qa8 {[%clk 0:03:24]} 22. Rxf7 {[%clk
0:30:14]} 22... Qxa7 {[%clk 0:03:02]} 23. Rxa7 {[%clk 0:29:42]} 23... g6 {[%clk
0:01:06]} 24. Nf4 {[%clk 0:29:31]} 24... Bf6 {[%clk 0:01:31]} 25. Rxc6 {[%clk
0:26:52]} 25... Bd4+ {[%clk 0:00:34]} 26. Kg2 {[%clk 0:27:04]} 26... c4 {[%clk
0:00:46]} 27. Raa6 {[%clk 0:26:28]} 27... g5 {[%clk 0:01:02]} 28. Ne6 {[%clk
0:15:52]} 28... cxd3 {[%clk 0:01:27]} 29. Nxf8 {[%clk 0:16:18]} 29... d2 {[%clk
0:01:45]} 30. Rc8 {[%clk 0:16:29]} 30... h6 {[%clk 0:00:33]} 31. Ng6+ {[%clk
0:15:06]} 31... Kh7 {[%clk 0:00:58]} 32. Rc7+ {[%clk 0:15:17]} 32... Bg7 {[%clk
0:01:25]} 33. Nf8+ {[%clk 0:15:19]} 33... Kg8 {[%clk 0:00:51]} 34. Ne6 {[%clk
0:15:31]} 34... d1=Q {[%clk 0:00:34]} 35. Rxg7+ {[%clk 0:15:48]} 1-0

[Variant "Standard"]
[Site "Europe Echecs"]

[Event "Championnat du monde jeunes U12"]
[Date "2024.11.26"]
[White "Negrean, Andrei"]
[Black "Liu, Patrick"]
[WhiteElo "2255"]
[BlackElo "2192"]
[Round "11.4"]
[Result "1/2-1/2"]
[TimeControl "5400+30"]

1. d4 {[%clk 1:30:57]} 1... Nf6 {[%clk 1:30:52]} 2. c4 {[%clk 1:31:15]} 2... e6
{[%clk 1:31:17]} 3. Nf3 {[%clk 1:31:00]} 3... d5 {[%clk 1:31:27]} 4. Nc3 {[%clk
1:28:08]} 4... Bb4 {[%clk 1:31:41]} 5. Qa4+ {[%clk 1:24:55]} 5... Nc6 {[%clk
1:32:02]} 6. Bg5 {[%clk 1:22:29]} 6... h6 {[%clk 1:27:36]} 7. Bxf6 {[%clk
1:18:53]} 7... Qxf6 {[%clk 1:26:52]} 8. e3 {[%clk 1:14:37]} 8... O-O {[%clk
1:23:29]} 9. cxd5 {[%clk 1:08:49]} 9... exd5 {[%clk 1:23:11]} 10. Qd1 {[%clk
1:06:11]} 10... Rd8 {[%clk 1:08:48]} 11. h3 {[%clk 0:59:27]} 11... Ne7 {[%clk
0:54:51]} 12. Be2 {[%clk 0:46:25]} 12... c6 {[%clk 0:49:43]} 13. O-O {[%clk
0:42:39]} 13... Ng6 {[%clk 0:48:17]} 14. Rc1 {[%clk 0:26:33]} 14... Bd6 {[%clk
0:46:27]} 15. Bd3 {[%clk 0:24:24]} 15... Bf5 {[%clk 0:38:38]} 16. Bxf5 {[%clk
0:20:41]} 16... Qxf5 {[%clk 0:37:00]} 17. Na4 {[%clk 0:20:32]} 17... Qd7 {[%clk
0:31:54]} 18. Nc5 {[%clk 0:18:19]} 18... Qe7 {[%clk 0:31:39]} 19. Qc2 {[%clk
0:14:21]} 19... Rac8 {[%clk 0:30:43]} 20. Rfd1 {[%clk 0:12:46]} 20... Bb8 {[%clk
0:26:48]} 21. b4 {[%clk 0:08:32]} 21... Nf8 {[%clk 0:25:29]} 22. a4 {[%clk
0:07:03]} 22... Ne6 {[%clk 0:23:57]} 23. Nxe6 {[%clk 0:06:19]} 23... Qxe6 {[%clk
0:24:09]} 24. Qb2 {[%clk 0:05:58]} 24... Qd6 {[%clk 0:19:02]} 25. b5 {[%clk
0:06:04]} 25... b6 {[%clk 0:18:42]} 26. bxc6 {[%clk 0:05:50]} 26... Rxc6 {[%clk
0:19:00]} 27. Ne5 {[%clk 0:05:49]} 27... Rcc8 {[%clk 0:15:09]} 28. Rxc8 {[%clk
0:03:49]} 28... Rxc8 {[%clk 0:15:34]} 29. Rc1 {[%clk 0:04:12]} 29... Rxc1+
{[%clk 0:12:03]} 30. Qxc1 {[%clk 0:04:41]} 30... Qe6 {[%clk 0:09:23]} 31. Nc6
{[%clk 0:02:59]} 31... Qe8 {[%clk 0:08:52]} 32. Qc2 {[%clk 0:01:03]} 32... a5
{[%clk 0:07:19]} 33. Nxb8 {[%clk 0:01:09]} 33... Qxb8 {[%clk 0:07:45]} 34. Qc6
{[%clk 0:01:27]} 34... Qd8 {[%clk 0:07:47]} 35. g3 {[%clk 0:01:39]} 35... Kf8
{[%clk 0:07:39]} 36. h4 {[%clk 0:01:35]} 36... Ke7 {[%clk 0:07:57]} 37. e4
{[%clk 0:01:11]} 37... dxe4 {[%clk 0:06:58]} 38. Qxe4+ {[%clk 0:01:39]} 38...
Kf8 {[%clk 0:07:20]} 39. Qe5 {[%clk 0:00:55]} 39... f6 {[%clk 0:06:09]} 40. Qe4
{[%clk 0:00:48]} 40... Qd7 {[%clk 0:04:40]} 41. d5 {[%clk 0:01:01]} 41... b5
{[%clk 0:04:18]} 42. axb5 {[%clk 0:01:20]} 42... Qxb5 {[%clk 0:04:45]} 43. Qe6
{[%clk 0:00:39]} 43... a4 {[%clk 0:04:32]} 44. Qd6+ {[%clk 0:00:36]} 44... Kf7
{[%clk 0:02:58]} 45. Qc7+ {[%clk 0:00:37]} 45... Kg6 {[%clk 0:03:15]} 46. d6
{[%clk 0:00:47]} 46... a3 {[%clk 0:03:12]} 47. d7 {[%clk 0:00:50]} 47... Qb1+
48. Kh2 {[%clk 0:00:53]} 48... a2 {[%clk 0:03:05]} 49. h5+ {[%clk 0:00:34]}
49... Kh7 {[%clk 0:03:09]} 50. d8=Q {[%clk 0:00:35]} 50... a1=Q {[%clk 0:03:30]}
51. Qxg7+ {[%clk 0:00:52]} 51... Kxg7 {[%clk 0:03:52]} 52. Qe7+ {[%clk 0:01:18]}
1/2-1/2

[Variant "Standard"]
[Site "Europe Echecs"]

[Event "Championnat du monde jeunes U12"]
[Date "2024.11.26"]
[White "Golis, Wiktor"]
[Black "Sobirov, Afruzbek"]
[WhiteElo "2343"]
[BlackElo "1928"]
[Round "11.5"]
[Result "1/2-1/2"]
[TimeControl "5400+30"]

1. d4 {[%clk 1:30:58]} 1... Nf6 {[%clk 1:30:55]} 2. c4 {[%clk 1:31:21]} 2... e6
{[%clk 1:31:19]} 3. Nf3 {[%clk 1:31:46]} 3... d5 {[%clk 1:31:45]} 4. Nc3 {[%clk
1:32:00]} 4... a6 {[%clk 1:31:51]} 5. cxd5 {[%clk 1:31:53]} 5... exd5 {[%clk
1:32:15]} 6. Qb3 {[%clk 1:31:34]} 6... c6 {[%clk 1:27:07]} 7. e4 {[%clk
1:28:04]} 7... dxe4 {[%clk 1:10:27]} 8. Ng5 {[%clk 1:27:34]} 8... Nd5 {[%clk
1:10:35]} 9. Bc4 {[%clk 1:26:16]} 9... Bb4 {[%clk 1:10:18]} 10. O-O {[%clk
1:21:05]} 10... Bxc3 {[%clk 1:08:25]} 11. bxc3 {[%clk 1:21:19]} 11... b5 {[%clk
1:03:13]} 12. Be2 {[%clk 1:18:42]} 12... O-O {[%clk 1:03:34]} 13. Nxe4 {[%clk
1:17:44]} 13... Bf5 {[%clk 1:03:54]} 14. Bf3 {[%clk 1:13:44]} 14... Re8 {[%clk
0:54:19]} 15. Nc5 {[%clk 1:10:03]} 15... Nd7 {[%clk 0:46:19]} 16. Bxd5 {[%clk
0:58:26]} 16... cxd5 {[%clk 0:46:40]} 17. Qxd5 {[%clk 0:56:04]} 17... Nxc5
{[%clk 0:47:01]} 18. Qxf5 {[%clk 0:53:25]} 18... Ne4 {[%clk 0:46:53]} 19. Bb2
{[%clk 0:53:14]} 19... Qa5 {[%clk 0:43:35]} 20. Qh3 {[%clk 0:43:05]} 20... Nd2
{[%clk 0:40:37]} 21. Rfd1 {[%clk 0:41:34]} 21... Nc4 {[%clk 0:40:50]} 22. Bc1
{[%clk 0:41:44]} 22... Re2 {[%clk 0:40:10]} 23. Bh6 {[%clk 0:31:27]} 23... Re6
{[%clk 0:32:07]} 24. Bf4 {[%clk 0:29:56]} 24... Rae8 {[%clk 0:22:13]} 25. d5
{[%clk 0:28:18]} 25... Re4 {[%clk 0:18:56]} 26. Qg3 {[%clk 0:28:00]} 26... b4
{[%clk 0:15:21]} 27. f3 {[%clk 0:22:30]} 27... Qb6+ {[%clk 0:08:30]} 28. Kh1
{[%clk 0:22:43]} 28... Re2 {[%clk 0:08:45]} 29. d6 {[%clk 0:21:39]} 29... Rd8
{[%clk 0:07:32]} 30. Bh6 {[%clk 0:17:14]} 30... g6 {[%clk 0:07:43]} 31. Qh4
{[%clk 0:14:03]} 31... Ne3 {[%clk 0:04:45]} 32. Bxe3 {[%clk 0:04:27]} 32... Rxe3
{[%clk 0:05:09]} 33. cxb4 {[%clk 0:03:06]} 33... Rxd6 {[%clk 0:04:55]} 34. Rxd6
{[%clk 0:02:32]} 34... Qxd6 {[%clk 0:05:14]} 35. h3 {[%clk 0:02:19]} 35... Rd3
{[%clk 0:03:14]} 36. Qe1 {[%clk 0:01:52]} 36... Rd2 {[%clk 0:01:14]} 37. a3
{[%clk 0:01:55]} 37... Qd4 {[%clk 0:01:36]} 38. Rc1 {[%clk 0:00:49]} 38... Kg7
{[%clk 0:01:53]} 39. Kh2 {[%clk 0:00:33]} 39... Qb2 {[%clk 0:01:57]} 40. Kh1
{[%clk 0:00:32]} 40... Rxg2 {[%clk 0:01:57]} 41. Qc3+ {[%clk 0:00:37]} 41...
Qxc3 {[%clk 0:02:22]} 42. Rxc3 {[%clk 0:01:07]} 42... Ra2 {[%clk 0:02:45]} 43.
Kg1 {[%clk 0:01:31]} 43... Kh6 {[%clk 0:01:29]} 44. f4 {[%clk 0:01:11]} 44... f5
{[%clk 0:01:53]} 45. Kf1 {[%clk 0:00:41]} 45... Kh5 {[%clk 0:02:01]} 46. Rc7
{[%clk 0:01:06]} 46... h6 {[%clk 0:02:24]} 47. Rc3 {[%clk 0:00:58]} 47... Kh4
{[%clk 0:00:35]} 48. Kg1 {[%clk 0:01:27]} 48... g5 {[%clk 0:00:41]} 49. fxg5
{[%clk 0:01:24]} 49... hxg5 {[%clk 0:01:04]} 50. Rf3 {[%clk 0:01:16]} 50... f4
{[%clk 0:01:19]} 51. Rc3 {[%clk 0:01:04]} 51... g4 {[%clk 0:01:39]} 52. hxg4
{[%clk 0:01:17]} 52... Kxg4 {[%clk 0:02:03]} 53. Kf1 {[%clk 0:01:13]} 53... f3
{[%clk 0:01:50]} 54. Rc8 {[%clk 0:01:02]} 54... Rxa3 {[%clk 0:02:14]} 55. Rg8+
{[%clk 0:00:58]} 55... Kf4 {[%clk 0:02:32]} 56. Rf8+ {[%clk 0:01:24]} 56... Ke3
{[%clk 0:02:39]} 57. Re8+ {[%clk 0:01:50]} 57... Kd4 {[%clk 0:02:52]} 58. Rc8
{[%clk 0:01:52]} 58... Rc3 {[%clk 0:01:38]} 59. Ra8 {[%clk 0:01:33]} 59... Rc6
{[%clk 0:01:50]} 60. Kf2 {[%clk 0:01:41]} 60... Kc4 {[%clk 0:01:19]} 61. Rb8
{[%clk 0:00:54]} 61... Rf6 {[%clk 0:01:38]} 62. Rb7 {[%clk 0:01:19]} 62... Kb3
{[%clk 0:01:33]} 63. Rb8 {[%clk 0:01:38]} 63... Kc4 {[%clk 0:01:02]} 64. Rb7
{[%clk 0:02:03]} 64... Kd5 {[%clk 0:00:38]} 65. b5 {[%clk 0:02:06]} 65... axb5
{[%clk 0:00:55]} 66. Rxb5+ {[%clk 0:02:32]} 1/2-1/2

[Variant "Standard"]
[Site "Europe Echecs"]

[Event "Championnat du monde jeunes U12"]
[Date "2024.11.26"]
[White "Abdsattar, Alisher"]
[Black "Torres Rebolledo, Alvaro"]
[WhiteElo "2082"]
[BlackElo "2216"]
[Round "11.6"]
[Result "1-0"]
[TimeControl "5400+30"]

1. e4 {[%clk 1:30:59]} 1... c6 {[%clk 1:29:57]} 2. Nf3 {[%clk 1:31:23]} 2... d5
{[%clk 1:30:15]} 3. Nc3 {[%clk 1:31:47]} 3... dxe4 {[%clk 1:28:15]} 4. Nxe4
{[%clk 1:32:11]} 4... Nf6 {[%clk 1:28:38]} 5. Qe2 {[%clk 1:32:36]} 5... Nxe4
{[%clk 1:28:29]} 6. Qxe4 {[%clk 1:33:03]} 6... Be6 {[%clk 1:28:21]} 7. b3 {[%clk
1:28:28]} 7... Nd7 {[%clk 1:23:19]} 8. Bb2 {[%clk 1:26:54]} 8... Bd5 {[%clk
1:22:42]} 9. Qe2 {[%clk 1:25:18]} 9... Bxf3 {[%clk 1:21:29]} 10. Qxf3 {[%clk
1:25:10]} 10... e6 {[%clk 1:20:10]} 11. g3 {[%clk 1:21:59]} 11... Nf6 {[%clk
1:19:22]} 12. Bg2 {[%clk 1:19:55]} 12... Be7 {[%clk 1:18:12]} 13. d4 {[%clk
1:17:14]} 13... Qa5+ {[%clk 1:08:08]} 14. c3 {[%clk 1:16:41]} 14... Qb6 {[%clk
1:07:46]} 15. O-O {[%clk 1:16:50]} 15... a5 {[%clk 1:07:00]} 16. c4 {[%clk
1:13:55]} 16... O-O {[%clk 1:05:47]} 17. Rfe1 {[%clk 1:10:34]} 17... a4 {[%clk
0:59:31]} 18. g4 {[%clk 1:03:09]} 18... Bb4 {[%clk 0:52:06]} 19. Red1 {[%clk
1:01:50]} 19... a3 {[%clk 0:45:48]} 20. Bc1 {[%clk 1:02:06]} 20... Rfd8 {[%clk
0:37:16]} 21. Be3 {[%clk 0:55:00]} 21... Qc7 {[%clk 0:33:29]} 22. Rac1 {[%clk
0:51:27]} 22... Bd6 {[%clk 0:29:41]} 23. h4 {[%clk 0:42:19]} 23... e5 {[%clk
0:22:39]} 24. g5 {[%clk 0:39:05]} 24... e4 {[%clk 0:20:22]} 25. Qe2 {[%clk
0:38:23]} 25... Nd7 {[%clk 0:19:04]} 26. Bxe4 {[%clk 0:38:18]} 26... Bf4 {[%clk
0:18:06]} 27. Bg2 {[%clk 0:32:38]} 27... Nf8 {[%clk 0:14:01]} 28. Rc3 {[%clk
0:28:26]} 28... Re8 {[%clk 0:11:05]} 29. Qf3 {[%clk 0:24:38]} 29... Bxe3 {[%clk
0:09:29]} 30. Rxe3 {[%clk 0:25:00]} 30... Rxe3 {[%clk 0:09:30]} 31. Qxe3 {[%clk
0:25:22]} 31... Ng6 {[%clk 0:07:43]} 32. Re1 {[%clk 0:24:36]} 32... Rf8 {[%clk
0:06:53]} 33. Qg3 {[%clk 0:18:58]} 33... Qa5 {[%clk 0:05:57]} 34. Re2 {[%clk
0:18:22]} 34... Qf5 {[%clk 0:05:59]} 35. Be4 {[%clk 0:17:58]} 35... Qd7 {[%clk
0:06:15]} 36. d5 {[%clk 0:15:49]} 36... cxd5 {[%clk 0:06:42]} 37. cxd5 {[%clk
0:15:37]} 37... Qb5 {[%clk 0:06:56]} 38. Bf3 {[%clk 0:14:32]} 38... Qd3 {[%clk
0:06:01]} 39. h5 {[%clk 0:10:34]} 39... Nh4 {[%clk 0:05:41]} 40. Bg4 {[%clk
0:10:56]} 40... Qd1+ {[%clk 0:03:54]} 41. Kh2 {[%clk 0:11:22]} 41... Nf5 {[%clk
0:03:54]} 42. Qf4 {[%clk 0:11:16]} 42... g6 {[%clk 0:03:45]} 43. Rd2 {[%clk
0:10:16]} 43... Qc1 {[%clk 0:02:41]} 44. Bxf5 {[%clk 0:10:01]} 44... gxf5 {[%clk
0:03:05]} 45. d6 {[%clk 0:10:06]} 45... Rd8 {[%clk 0:03:27]} 46. d7 {[%clk
0:09:53]} 46... Qc6 {[%clk 0:02:22]} 47. Qe5 {[%clk 0:07:51]} 47... Qe6 {[%clk
0:01:35]} 48. Qf6 {[%clk 0:08:03]} 48... Qxf6 {[%clk 0:00:36]} 49. gxf6 {[%clk
0:08:29]} 49... h6 {[%clk 0:00:45]} 50. Kg3 {[%clk 0:08:56]} 50... Kh7 {[%clk
0:00:57]} 51. Kf4 {[%clk 0:09:22]} 51... b5 {[%clk 0:01:26]} 52. Ke5 {[%clk
0:09:36]} 52... b4 {[%clk 0:01:53]} 53. Kd6 {[%clk 0:09:51]} 53... Ra8 {[%clk
0:01:29]} 54. Ke7 {[%clk 0:10:12]} 54... Ra7 {[%clk 0:00:58]} 55. Ke8 {[%clk
0:10:35]} 55... f4 {[%clk 0:00:33]} 56. d8=Q {[%clk 0:10:58]} 56... f3 {[%clk
0:00:57]} 57. Qd3+ {[%clk 0:11:15]} 57... Kh8 {[%clk 0:01:22]} 58. Qe3 {[%clk
0:11:36]} 58... Ra8+ {[%clk 0:01:27]} 59. Rd8 {[%clk 0:12:00]} 59... Kg8 {[%clk
0:01:25]} 60. Rxa8 {[%clk 0:12:22]} 60... Kh7 {[%clk 0:01:52]} 61. Qe4+ {[%clk
0:12:35]} 1-0

[Variant "Standard"]
[Site "Europe Echecs"]